bitfinex-derivatives/quotes_SOLF0:USTF0_20251201
["timestamp","ask_amount","ask_price","bid_price","bid_amount"]
[1764563652388,3.27571137,126.72,126.69,5.54529979]
[1764563652583,0.05571137,126.72,126.7,1.38]
[1764563654793,0.05571137,126.72,126.71,5.488775]
[1764563656090,3.22,126.82,126.72,1.38]
[1764563656398,3.22,126.82,126.73,4.108775]
[1764563656588,3.22,126.82,126.72,1.38]
[1764563656900,3.22,126.78,126.72,1.38]
[1764563657098,3.27028508,126.76,126.74,0.05845633]
[1764563657304,3.27626115,126.76,126.74,0.04976437]
[1764563658592,10.37686115,126.76,126.74,0.04976437]
[1764563658800,3.22,126.75,126.74,0.04976437]
[1764563659603,7.15686115,126.76,126.74,1.42976437]
[1764563659795,0.05626115,126.76,126.74,1.42976437]
[1764563660103,3.20626115,126.76,126.74,1.42976437]
[1764563660702,3.20626115,126.76,126.74,0.04976437]
[1764563661298,10.30726115,126.76,126.74,0.04976437]
[1764563661704,3.15,126.75,126.74,0.04976437]
[1764563663008,10.30726115,126.76,126.74,0.04976437]
[1764563664613,3.15,126.75,126.74,0.04976437]
[1764563666716,10.27726115,126.76,126.74,0.04976437]
[1764563667410,10.27726115,126.76,126.74,1.42976437]
[1764563668114,7.15726115,126.76,126.74,1.42976437]
[1764563668816,0.05626115,126.76,126.75,1.38]
[1764563671822,3.17626115,126.76,126.74,4.15853937]
[1764563672021,3.17626115,126.76,126.74,0.04976437]
[1764563672530,10.27686115,126.76,126.74,0.04976437]
[1764563672726,3.12,126.75,126.74,0.04976437]
[1764563676833,3.17626115,126.76,126.74,0.04976437]
[1764563678237,10.27676115,126.76,126.74,0.04976437]
[1764563678437,3.12,126.75,126.74,0.04976437]
[1764563678737,0.05626115,126.76,126.74,1.42976437]
[1764563679131,3.17626115,126.76,126.74,1.42976437]
[1764563679331,3.17626115,126.76,126.74,0.04976437]
[1764563680139,10.27686115,126.76,126.74,0.04976437]
[1764563681229,10.27686115,126.76,126.74,1.42976437]
[1764563681533,10.27686115,126.76,126.75,1.38]
[1764563681534,0.05626115,126.76,126.75,1.38]
[1764563682129,3.12,126.79,126.75,1.38]
[1764563682330,3.12,126.79,126.76,5.488775]
[1764563683036,3.12,126.8,126.77,1.38]
[1764563683236,0.05954626,126.79,126.77,1.44027901]
[1764563684838,0.05954626,126.79,126.78,5.488775]
[1764563685026,10.2167,126.83,126.79,1.38]
[1764563685637,10.2167,126.83,126.8,5.488775]
[1764563685838,7.0967,126.83,126.81,1.38]
[1764563686039,7.12845104,126.83,126.81,1.43740533]
[1764563686234,0.03175104,126.83,126.81,1.43740533]
[1764563687037,3.15175104,126.83,126.81,0.05740533]
[1764563690428,3.15175104,126.83,126.76,5.548775]
[1764563690640,3.15175104,126.83,126.79,1.44]
[1764563690847,3.12,126.83,126.79,1.44]
[1764563691042,3.12,126.83,126.78,4.108775]
[1764563691243,3.12,126.83,126.78,5.548775]
[1764563691433,3.26,126.81,126.79,0.05122933]
[1764563691741,3.26,126.81,126.79,0.05994932]
[1764563692441,3.26,126.8,126.79,0.05994932]
[1764563694642,3.31454265,126.82,126.79,0.05994932]
[1764563695737,10.41184265,126.82,126.79,0.05994932]
[1764563695942,3.26,126.81,126.79,0.05994932]
[1764563696751,7.15184265,126.82,126.79,1.49994932]
[1764563696951,10.41184265,126.82,126.79,1.49994932]
[1764563697352,3.26,126.81,126.79,0.05994932]
[1764563699751,7.15184265,126.82,126.8,5.548775]
[1764563699752,0.05454265,126.82,126.8,5.548775]
[1764563699956,0.05454265,126.82,126.81,1.44]
[1764563700551,3.31454265,126.82,126.8,4.108775]
[1764563700754,3.31454265,126.82,126.79,1.49994932]
[1764563701151,0.05454265,126.82,126.81,1.44]
[1764563701348,3.26,126.9,126.81,1.44]
[1764563701548,3.26,126.88,126.84,5.548775]
[1764563701852,3.26,126.86,126.84,4.108775]
[1764563702150,3.26,126.86,126.82,5.548775]
[1764563702353,0.03461372,126.85,126.83,0.05617252]
[1764563702754,3.29461372,126.85,126.83,1.49617252]
[1764563704057,3.29461372,126.85,126.83,0.05617252]
[1764563705259,3.26,126.84,126.83,0.05617252]
[1764563707854,7.0968,126.83,126.78,1.44]
[1764563708061,3.26,126.82,126.78,1.44]
[1764563708953,3.26,126.82,126.77,11.208375]
[1764563708954,3.31980287,126.81,126.79,0.05968181]
[1764563710159,3.26,126.8,126.79,0.05968181]
[1764563710556,3.26,126.78,126.75,11.8]
[1764563710960,3.26,126.78,126.72,1.56]
[1764563711160,3.26,126.78,126.68,96.14]
[1764563711161,3.26,126.74,126.68,96.14]
[1764563711361,3.26,126.74,126.7,1.56]
[1764563711665,0.05407739,126.73,126.71,0.05319323]
[1764563711854,3.31407739,126.73,126.71,0.05319323]
[1764563712554,0.05407739,126.73,126.71,1.61319323]
[1764563712749,0.05407739,126.73,126.72,2.62945031]
[1764563712955,3.26,126.78,126.73,1.56]
[1764563713156,3.26,126.78,126.76,2.62945031]
[1764563713652,3.26,126.78,126.71,1.56]
[1764563713853,3.26,126.78,126.73,2.62945031]
[1764563714157,3.30978301,126.76,126.73,2.68468795]
[1764563714960,10.41048301,126.76,126.73,2.68468795]
[1764563715157,3.26,126.75,126.73,2.68468795]
[1764563716360,3.26,126.75,126.73,0.05523764]
[1764563716666,3.26,126.74,126.66,32.52435846]
[1764563717059,3.26,126.71,126.63,8.9118593]
[1764563717656,0.0536953,126.68,126.66,1.66893337]
[1764563717856,0.05597732,126.68,126.66,1.67001387]
[1764563718560,0.05597732,126.68,126.67,1.61]
[1764563719262,3.26,126.73,126.67,1.61]
[1764563720052,3.27,126.76,126.69,8.9118593]
[1764563720264,0.05269373,126.74,126.71,1.66811603]
[1764563722962,3.32269373,126.74,126.71,0.05811603]
[1764563724462,3.27,126.73,126.71,0.05811603]
[1764563727661,7.15439373,126.74,126.71,1.66811603]
[1764563727662,0.05269373,126.74,126.71,1.66811603]
[1764563727864,3.30269373,126.74,126.71,0.05811603]
[1764563730266,3.25,126.73,126.71,0.05811603]
[1764563731970,3.30269373,126.74,126.71,1.66811603]
[1764563732769,0.05269373,126.74,126.72,1.61]
[1764563732964,0.05269373,126.74,126.73,8.9118593]
[1764563733468,3.30269373,126.74,126.71,7.35997533]
[1764563733673,0.05269373,126.74,126.72,1.61]
[1764563735968,3.25,126.77,126.73,1.61]
[1764563736568,3.25,126.77,126.74,1.61]
[1764563737074,3.29295725,126.77,126.74,1.66512654]
[1764563739586,0.04295725,126.77,126.75,1.61]
[1764563740078,0.04295725,126.77,126.76,1.61]
[1764563741781,0.04295725,126.77,126.75,8.7109]
[1764563742377,0.04295725,126.77,126.76,2.62658591]
[1764563742972,0.04295725,126.77,126.76,4.23658591]
[1764563744374,3.25,126.81,126.77,1.61]
[1764563744571,3.25,126.81,126.79,2.62658591]
[1764563745381,3.25,126.81,126.79,2.68050381]
[1764563749583,3.25,126.83,126.8,1.61]
[1764563749785,3.05,126.84,126.81,4.23658591]
[1764563749981,3.05,126.84,126.83,2.62658591]
[1764563750388,3.05,126.84,126.81,2.62658591]
[1764563750786,3.05,126.83,126.81,2.62658591]
[1764563751281,3.05,126.83,126.8,0.06052022]
[1764563751481,3.05,126.83,126.81,2.62658591]
[1764563752086,3.05,126.86,126.8,0.06052022]
[1764563752286,2.62658591,126.83,126.8,0.06052022]
[1764563752487,3.05,126.82,126.8,0.00052022]
[1764563753188,10.1473,126.82,126.8,0.00052022]
[1764563753386,3.05,126.81,126.8,0.00052022]
[1764563754992,3.05,126.79,126.75,2.62658591]
[1764563755378,3.05,126.79,126.75,4.29658591]
[1764563756008,3.1020346,126.78,126.76,0.05254815]
[1764563758195,10.2015346,126.78,126.76,0.05254815]
[1764563758391,3.05,126.77,126.76,0.05254815]
[1764563759791,3.05,126.75,126.7,1.67]
[1764563760191,3.05,126.75,126.71,2.62658591]
[1764563760386,3.05,126.73,126.71,2.62658591]
[1764563760792,3.10420045,126.73,126.71,2.6764679]
[1764563761099,3.10420045,126.73,126.71,0.04988199]
[1764563762391,3.05,126.72,126.71,0.04988199]
[1764563764496,3.05,126.71,126.67,14.26658591]
[1764563764696,3.05,126.71,126.65,2.62658591]
[1764563765103,3.05,126.66,126.63,2.62658591]
[1764563765517,3.10928978,126.66,126.63,2.68593312]
[1764563767408,0.05928978,126.66,126.65,2.62658591]
[1764563767606,3.10928978,126.66,126.65,2.62658591]
[1764563767812,3.10928978,126.66,126.63,2.68593312]
[1764563768809,3.05,126.65,126.63,2.68593312]
[1764563770008,0.05928978,126.66,126.63,4.35593312]
[1764563770209,0.05928978,126.66,126.65,2.62658591]
[1764563770907,3.10928978,126.66,126.65,2.62658591]
[1764563771118,3.10928978,126.66,126.63,1.72934721]
[1764563771320,3.10928978,126.66,126.65,2.62658591]
[1764563772522,3.10928978,126.66,126.64,4.11243496]
[1764563773320,0.05928978,126.66,126.64,4.11243496]
[1764563773520,0.05928978,126.66,126.64,5.78243496]
[1764563774311,0.05928978,126.66,126.65,1.67]
[1764563774515,3.05,126.68,126.65,1.67]
[1764563774712,3.05,126.68,126.66,4.11243496]
[1764563775508,3.10288702,126.68,126.66,4.16382177]
[1764563778519,7.15838702,126.68,126.66,0.05138681]
[1764563778723,3.05,126.67,126.66,0.05138681]
[1764563784428,3.05,126.67,126.63,4.11243496]
[1764563784832,3.06,126.66,126.63,4.11243496]
[1764563785325,3.06,126.66,126.6,27.1]
[1764563785530,3.06,126.63,126.62,0.05455253]
[1764563785732,3.11035507,126.64,126.61,5.90068913]
[1764563786133,3.06,126.63,126.61,4.17068913]
[1764563787323,3.06,126.62,126.61,4.17068913]
[1764563790132,10.1681,126.63,126.61,4.17068913]
[1764563790331,3.06,126.62,126.61,4.17068913]
[1764563791332,10.1695,126.6,126.59,4.11243496]
[1764563791729,3.06,126.6,126.57,4.11243496]
[1764563791935,3.06,126.58,126.57,4.11243496]
[1764563792729,0.05213163,126.59,126.57,7.27243496]
[1764563793926,10.22223163,126.59,126.57,7.27243496]
[1764563796341,0.05213163,126.59,126.58,3.16]
[1764563796542,0.05213163,126.59,126.57,4.11243496]
[1764563796741,0.05213163,126.59,126.57,7.27243496]
[1764563796932,7.16223163,126.59,126.57,7.27243496]
[1764563799438,7.16223163,126.59,126.58,3.16]
[1764563800438,7.1107,126.58,126.56,3.21590168]
[1764563800649,10.1707,126.58,126.57,4.11243496]
[1764563801139,7.1107,126.58,126.57,4.11243496]
[1764563802140,0.05213163,126.59,126.58,3.16]
[1764563803148,7.1098,126.6,126.58,3.16]
[1764563803346,7.1098,126.6,126.59,4.11243496]
[1764563805248,0.05512267,126.61,126.6,3.16]
[1764563805752,3.06,126.6,126.59,4.16713814]
[1764563805946,3.06,126.6,126.59,0.05470318]
[1764563808548,3.06,126.58,126.55,4.11243496]
[1764563809448,3.06,126.58,126.55,4.16770712]
[1764563809756,3.11455289,126.58,126.55,7.32770712]
[1764563810054,10.22525289,126.58,126.55,7.32770712]
[1764563810641,10.4713,126.57,126.55,4.16770712]
[1764563813259,10.4713,126.57,126.55,0.05527216]
[1764563813459,10.4713,126.57,126.55,4.16770712]
[1764563813861,3.36,126.56,126.55,4.16770712]
[1764563815970,3.36,126.56,126.55,0.05527216]
[1764563818772,3.36,126.51,126.5,4.11243496]
[1764563819074,7.1141,126.52,126.5,7.20243496]
[1764563819776,7.17382228,126.52,126.5,7.2616615]
[1764563820177,3.36,126.51,126.5,0.05922654]
[1764563820377,3.36,126.49,126.46,4.11243496]
[1764563820571,3.36,126.49,126.46,3.09]
[1764563821273,3.36,126.48,126.45,18.16]
[1764563821572,3.36,126.48,126.45,0.05162002]
[1764563821573,3.41611494,126.48,126.45,0.05162002]
[1764563821778,10.4768,126.47,126.45,0.05162002]
[1764563821981,3.36,126.46,126.45,0.05162002]
[1764563822382,3.36,126.43,126.4,4.11243496]
[1764563822680,3.36,126.43,126.4,7.20243496]
[1764563823267,10.4795,126.43,126.4,3.09]
[1764563823468,7.17945188,126.43,126.42,7.20243496]
[1764563823673,0.05995188,126.43,126.42,7.20243496]
[1764563824181,0.05995188,126.43,126.4,7.25812209]
[1764563824784,10.53915188,126.43,126.4,7.25812209]
[1764563825572,3.36,126.41,126.4,0.05568713]
[1764563826779,3.36,126.4,126.37,4.11243496]
[1764563827167,3.36,126.4,126.37,7.20243496]
[1764563827377,10.4811,126.4,126.37,7.20243496]
[1764563827579,7.17284263,126.4,126.37,7.2579829]
[1764563827775,7.17284263,126.4,126.38,3.09]
[1764563827976,7.17284263,126.4,126.37,7.2579829]
[1764563827977,10.53284263,126.4,126.37,7.2579829]
[1764563828173,10.53284263,126.4,126.37,0.05554794]
[1764563828174,10.4817,126.39,126.37,0.05554794]
[1764563829482,0.05174263,126.4,126.38,4.11243496]
[1764563829682,0.05174263,126.4,126.39,3.09]
[1764563832182,14.2312,126.5,126.39,3.09]
[1764563832183,3.36,126.47,126.4,3.09]
[1764563832378,3.36,126.47,126.41,10.42501835]
[1764563832777,3.36,126.47,126.42,3.09]
[1764563833171,10.5304095,126.46,126.43,0.05724631]
[1764563833370,3.36,126.45,126.43,0.05773704]
[1764563833574,3.36,126.45,126.39,7.33501835]
[1764563833984,10.4801,126.42,126.39,7.33501835]
[1764563834380,10.4805,126.41,126.38,3.09]
[1764563834583,3.41068839,126.41,126.38,0.05617199]
[1764563835181,7.1209,126.4,126.38,0.05617199]
[1764563836478,0.05068839,126.41,126.38,3.14617199]
[1764563836683,0.05068839,126.41,126.4,3.09]
[1764563837379,0.05068839,126.41,126.39,7.33501835]
[1764563837579,3.41068839,126.41,126.39,7.33501835]
[1764563837787,3.41068839,126.41,126.38,0.05617199]
[1764563837982,10.4809,126.4,126.38,0.05617199]
[1764563838586,3.36,126.39,126.38,0.05617199]
[1764563838784,3.36,126.34,126.27,3.09]
[1764563838982,3.36,126.34,126.24,10.42501835]
[1764563839172,10.4855,126.32,126.26,7.33501835]
[1764563839372,45.25841835,126.39,126.27,3.09]
[1764563839373,3.36,126.37,126.27,3.09]
[1764563839773,21.57841835,126.39,126.27,3.09]
[1764563839774,3.38,126.32,126.31,0.05776787]
[1764563839984,3.38,126.32,126.26,7.33501835]
[1764563840187,3.38,126.32,126.09,94.86]
[1764563840188,3.38,126.25,126.21,3.08]
[1764563840486,7.1288,126.26,126.21,3.08]
[1764563840686,37.9283,126.34,126.21,3.08]
[1764563840884,3.38,126.29,126.23,10.41501835]
[1764563841078,0.05810792,126.27,126.25,3.13582779]
[1764563841274,10.56640792,126.27,126.25,0.05582779]
[1764563841480,3.38,126.26,126.25,0.05582779]
[1764563842086,7.18640792,126.27,126.25,0.05582779]
[1764563842488,10.56640792,126.27,126.25,0.05582779]
[1764563842687,0.05810792,126.27,126.25,3.13582779]
[1764563842991,7.127,126.29,126.27,3.08]
[1764563843294,7.127,126.29,126.26,7.33501835]
[1764563843584,7.127,126.29,126.26,10.41501835]
[1764563843889,3.42976281,126.29,126.26,7.33501835]
[1764563844684,3.38,126.28,126.25,0.05582779]
[1764563846287,7.128,126.27,126.25,0.05582779]
[1764563846988,10.339,126.26,126.19,65.17]
[1764563847193,10.339,126.26,126.2,7.33501835]
[1764563847490,3.21,126.26,126.2,7.33501835]
[1764563847990,7.1286,126.26,126.21,3.17]
[1764563848287,0.0566521,126.24,126.22,3.23053716]
[1764563848785,3.21,126.28,126.22,3.23053716]
[1764563849884,0.05847069,126.26,126.22,3.23053716]
[1764563854991,3.21,126.31,126.25,3.17]
[1764563856001,3.26082729,126.29,126.27,0.05981066]
[1764563856191,3.26852513,126.29,126.27,0.05143795]
[1764563856791,10.3377,126.28,126.27,0.05143795]
[1764563857494,0.05852513,126.29,126.27,0.05143795]
[1764563859200,0.05852513,126.29,126.27,3.22143795]
[1764563859398,0.05852513,126.29,126.27,0.05143795]
[1764563859399,3.26852513,126.29,126.27,0.05143795]
[1764563859791,3.21,126.28,126.27,0.05143795]
[1764563860996,0.05852513,126.29,126.27,3.22143795]
[1764563863904,7.1256,126.32,126.27,3.22143795]
[1764563864099,7.1256,126.32,126.3,10.50501835]
[1764563864297,3.21,126.34,126.31,3.17]
[1764563864298,10.3345,126.34,126.31,3.17]
[1764563864899,10.38702756,126.34,126.31,3.22256069]
[1764563865099,7.17702756,126.34,126.31,3.22256069]
[1764563865301,0.05252756,126.34,126.31,3.22256069]
[1764563865895,0.05252756,126.34,126.33,10.50501835]
[1764563866300,7.1231,126.36,126.34,3.17]
[1764563867302,7.1219,126.38,126.34,3.17]
[1764563867507,3.26271258,126.37,126.35,0.05562324]
[1764563867811,0.05658844,126.37,126.35,3.22442111]
[1764563869610,17.53828462,126.45,126.37,3.17]
[1764563869807,3.36,126.43,126.4,3.26]
[1764563870605,3.41517492,126.43,126.4,3.31938474]
[1764563871005,0.05517492,126.43,126.4,3.31938474]
[1764563874406,7.21018462,126.54,126.43,3.26]
[1764563874606,3.36,126.52,126.45,10.59501835]
[1764563875011,10.4748,126.51,126.45,10.59501835]
[1764563875412,0.0518704,126.49,126.47,3.31509673]
[1764563879316,3.4118704,126.49,126.47,0.05509673]
[1764563880022,3.36,126.48,126.47,0.05509673]
[1764563880421,3.36,126.46,126.42,7.33501835]
[1764563880822,3.36,126.46,126.41,9.94]
[1764563881016,3.36,126.46,126.41,6.68]
[1764563881222,10.4784,126.45,126.41,6.68]
[1764563881421,0.05587627,126.44,126.42,0.05256635]
[1764563881811,10.53457627,126.44,126.42,0.05256635]
[1764563882416,7.17457627,126.44,126.42,0.05256635]
[1764563882618,0.05587627,126.44,126.42,3.31256635]
[1764563883015,7.1163,126.48,126.43,3.26]
[1764563884119,0.05415841,126.47,126.44,3.31005462]
[1764563884323,3.41415841,126.47,126.44,3.31005462]
[1764563885020,10.53125841,126.47,126.44,0.05005462]
[1764563885332,3.36,126.46,126.44,0.05005462]
[1764563885736,3.36,126.42,126.38,3.26]
[1764563886230,7.1194,126.43,126.38,3.26]
[1764563886425,10.4794,126.43,126.38,3.26]
[1764563886622,0.05808854,126.42,126.39,0.05635488]
[1764563886827,0.05808854,126.42,126.39,3.31635488]
[1764563888030,7.17798854,126.42,126.39,3.31635488]
[1764563888236,3.36,126.41,126.39,0.05635488]
[1764563888435,3.41808854,126.42,126.39,0.05635488]
[1764563889436,10.4806,126.41,126.39,0.05635488]
[1764563890337,0.05808854,126.42,126.39,3.31635488]
[1764563890531,3.36,126.47,126.4,3.26]
[1764563890927,10.477,126.47,126.4,3.26]
[1764563891528,0.05687104,126.45,126.42,10.64842051]
[1764563891727,3.36,126.5,126.43,3.26]
[1764563892028,3.36,126.5,126.45,10.59501835]
[1764563892340,3.36,126.49,126.45,10.59501835]
[1764563892740,3.36,126.49,126.46,0.05220732]
[1764563892942,7.16938045,126.48,126.46,0.05220732]
[1764563893840,0.05308045,126.48,126.46,0.05220732]
[1764563894436,0.05308045,126.48,126.46,3.31220732]
[1764563896035,0.05308045,126.48,126.46,14.79930819]
[1764563896238,0.05308045,126.48,126.47,3.26]
[1764563896646,3.36,126.52,126.47,3.26]
[1764563897342,3.36,126.58,126.5,3.26]
[1764563897641,3.41386976,126.55,126.53,0.05191598]
[1764563897836,3.41948217,126.55,126.53,0.05250106]
[1764563898038,3.36,126.54,126.53,0.05250106]
[1764563903039,10.5035,126.53,126.47,10.4665]
[1764563903937,0.05315696,126.51,126.49,3.40687482]
[1764563905140,7.1127,126.55,126.5,3.35]
[1764563905438,3.39,126.56,126.5,3.35]
[1764563905934,7.1137,126.53,126.47,10.4663]
[1764563906132,0.05597967,126.51,126.49,0.05633857]
[1764563906736,0.05597967,126.51,126.49,3.40633857]
[1764563909947,3.44597967,126.51,126.49,0.05633857]
[1764563911049,0.05597967,126.51,126.49,0.05633857]
[1764563911247,0.05597967,126.51,126.49,3.27633857]
[1764563911944,3.22,126.57,126.49,3.27633857]
[1764563912143,3.22,126.57,126.53,3.22]
[1764563913049,0.04924821,126.56,126.54,0.05879221]
[1764563913250,0.04924821,126.56,126.54,3.27879221]
[1764563913638,0.04924821,126.56,126.54,0.05879221]
[1764563915145,0.04924821,126.56,126.54,3.27879221]
[1764563915542,0.04924821,126.56,126.54,0.05879221]
[1764563918346,10.38114821,126.56,126.54,0.05879221]
[1764563918564,3.22,126.55,126.48,3.22]
[1764563919448,0.05372864,126.53,126.5,3.2768637]
[1764563920955,0.05372864,126.53,126.51,3.22]
[1764563921555,7.21018462,126.61,126.52,3.22]
[1764563921556,3.22,126.58,126.52,3.22]
[1764563921756,3.22,126.61,126.54,3.22]
[1764563921957,5.87522459,126.6,126.54,3.22]
[1764563922156,9.80176146,126.64,126.55,3.22]
[1764563922157,10.3304,126.59,126.55,3.22]
[1764563922356,7.1104,126.59,126.55,3.22]
[1764563922550,0.05431178,126.58,126.56,3.27609897]
[1764563923257,10.38521178,126.58,126.56,0.05609897]
[1764563923457,3.22,126.57,126.56,0.05609897]
[1764563924359,10.38521178,126.58,126.56,0.05609897]
[1764563924659,3.22,126.57,126.56,0.05609897]
[1764563930056,7.16521178,126.58,126.56,0.05609897]
[1764563930057,10.35521178,126.58,126.56,0.05609897]
[1764563930657,10.35521178,126.58,126.56,3.11609897]
[1764563930658,0.05431178,126.58,126.56,3.11609897]
[1764563931257,10.2977,126.64,126.57,3.06]
[1764563932066,3.19,126.64,126.59,3.06]
[1764563932254,3.19,126.64,126.6,0.05759392]
[1764563932453,3.19,126.64,126.6,3.11759392]
[1764563932956,10.2973,126.64,126.6,3.11759392]
[1764563933152,3.19,126.63,126.6,0.05759392]
[1764563933362,3.19,126.63,126.6,0.05187679]
[1764563933870,3.19,126.63,126.6,3.11187679]
[1764563934161,3.19,126.65,126.61,10.1688]
[1764563934362,5.87926158,126.69,126.62,3.1106207]
[1764563934665,3.19,126.7,126.64,3.11541023]
[1764563934863,3.19,126.7,126.66,0.05170967]
[1764563935865,3.19,126.67,126.66,0.05170967]
[1764563936061,3.19,126.67,126.65,0.05712895]
[1764563937964,10.2957,126.67,126.65,0.05712895]
[1764563938166,3.19,126.66,126.65,0.05712895]
[1764563940876,3.19,126.64,126.6,16.78]
[1764563941064,3.19,126.64,126.6,19.84]
[1764563941265,3.19,126.64,126.61,3.06]
[1764563941973,0.05712895,126.64,126.61,3.11742633]
[1764563942876,3.24712895,126.64,126.61,3.11742633]
[1764563943776,0.05712895,126.64,126.61,3.11742633]
[1764563944874,10.2945,126.69,126.62,3.06]
[1764563945073,10.2945,126.69,126.63,3.06]
[1764563945972,10.2945,126.69,126.65,3.11517208]
[1764563946478,3.19,126.66,126.65,0.05517208]
[1764563946665,3.19,126.66,126.64,0.05384455]
[1764563947476,10.2966,126.65,126.64,0.05384455]
[1764563947676,3.19,126.64,126.63,0.05315937]
[1764563948467,3.19,126.61,126.57,3.06]
[1764563949269,7.81007616,126.68,126.57,3.06]
[1764563949474,0.05315937,126.64,126.61,0.05932042]
[1764563949772,3.19,126.63,126.61,0.05932042]
[1764563951481,3.19,126.62,126.61,0.05932042]
[1764563952374,0.05315937,126.64,126.61,3.11932042]
[1764563954280,3.24315937,126.64,126.61,3.11932042]
[1764563954482,3.24315937,126.64,126.61,0.05932042]
[1764563954879,7.1079,126.63,126.61,0.05932042]
[1764563955082,3.19,126.62,126.61,0.05932042]
[1764563955487,3.19,126.62,126.55,3.06]
[1764563955679,7.1104,126.59,126.55,3.06]
[1764563956478,0.05910713,126.58,126.56,0.05364848]
[1764563957573,3.24910713,126.58,126.56,0.05364848]
[1764563957875,0.05910713,126.58,126.56,0.05364848]
[1764563958078,0.05910713,126.58,126.56,3.11364848]
[1764563959071,3.24910713,126.58,126.56,0.05364848]
[1764563959989,10.35980713,126.58,126.56,0.05364848]
[1764563960189,3.14,126.57,126.56,0.05364848]
[1764563961294,7.16980713,126.58,126.56,3.36364848]
[1764563963187,0.05910713,126.58,126.56,3.36364848]
[1764563963393,0.05910713,126.58,126.57,3.31]
[1764563968199,3.33910713,126.58,126.56,0.05364848]
[1764563969388,10.44990713,126.58,126.56,0.05364848]
[1764563970391,3.28,126.57,126.56,0.05364848]
[1764563975094,10.44970713,126.58,126.56,0.05364848]
[1764563977097,0.05910713,126.58,126.56,3.42364848]
[1764563978805,3.33910713,126.58,126.56,0.05364848]
[1764563979301,0.05910713,126.58,126.56,3.42364848]
[1764563981003,0.05910713,126.58,126.56,10.53524848]
[1764563981903,0.05910713,126.58,126.57,3.37]
[1764563982295,10.3882,126.63,126.58,3.37]
[1764563982491,10.3882,126.63,126.6,2.63386965]
[1764563982698,3.28,126.62,126.6,2.63386965]
[1764563983294,3.33337266,126.62,126.6,2.68688381]
[1764563984196,0.05337266,126.62,126.6,3.42301416]
[1764563984594,3.33337266,126.62,126.6,0.05301416]
[1764563985008,3.33337266,126.62,126.6,17.84711232]
[1764563985009,0.05337266,126.62,126.6,17.84711232]
[1764563985208,0.05337266,126.62,126.61,3.37]
[1764563985402,45.12658462,126.72,126.61,3.37]
[1764563985403,3.28,126.69,126.61,3.37]
[1764563986411,3.28,126.67,126.64,0.0578673]
[1764563986609,3.28,126.67,126.64,0.05796024]
[1764563988106,3.28,126.69,126.64,10.53486024]
[1764563988403,3.28,126.69,126.65,0.05612792]
[1764563988811,10.3848,126.69,126.65,0.05612792]
[1764563989110,3.28,126.68,126.65,0.05612792]
[1764563989302,3.28,126.68,126.65,0.0577488]
[1764563990311,10.3855,126.68,126.65,0.0577488]
[1764563990506,3.08,126.73,126.65,3.2677488]
[1764563990812,3.08,126.71,126.68,0.05639896]
[1764563991401,3.08,126.69,126.68,0.05639896]
[1764563991711,3.08,126.68,126.62,10.52509816]
[1764563992712,0.05106827,126.66,126.64,0.05978733]
[1764563993113,0.05106827,126.66,126.65,3.21]
[1764563993708,3.08,126.7,126.65,3.21]
[1764563994211,3.08,126.73,126.66,3.21]
[1764563994716,3.08,126.69,126.68,0.05811951]
[1764563995017,3.08,126.69,126.67,0.0580251]
[1764563995208,3.08,126.72,126.67,3.2680251]
[1764563995408,3.08,126.72,126.68,0.05470286]
[1764563995814,10.1834,126.71,126.68,0.05470286]
[1764563996116,10.1834,126.71,126.68,0.05816977]
[1764563996813,3.08,126.7,126.68,0.05816977]
[1764563997018,10.184,126.7,126.68,0.05816977]
[1764563997311,3.08,126.69,126.68,0.05816977]
[1764563999921,3.08,126.67,126.63,10.52509816]
[1764564000224,3.08,126.67,126.63,3.21]
[1764564000811,10.1852,126.68,126.63,3.21]
[1764564001120,0.05545995,126.67,126.65,3.21]
[1764564001628,0.05545995,126.67,126.64,0.05081126]